Workbook

Sheet Plane
B1: Airplane and Radar Station Problem
B3: This DIGMath module lets you investigate
B4: the related rates calculus problem of finding
B5: the rate dL/dt at which the distance L from
B6: a plane flying at a given speed at a given height
B7: toward a radar installation on the ground changes
A10: How fast, dx/dt, is the west-bound plane going (200-1000 kph)?
D11: 11 | E11: =#REF!+D11*(#REF!-#REF!)/100 ->  | F11: =200+50*D11 -> 750 | G11: kph
A13: At what altitude H is the plane flying (200-3000 meters)?
D14: 19 | E14: =#REF!+D14*(#REF!-#REF!)/100 ->  | F14: =200+100*D14 -> 2100 | G14: meters
A16: How far is the plane initially from the radar dish (1 - 50 km)?
D17: 32 | E17: =#REF!+D17*(#REF!-#REF!)/100 ->  | F17: =D17 -> 32 | G17: km
A23: Click each item below for suggestions and investigations | L23: Select the horizontal distance x : x = | P23: =O24/2 -> 12.5 | Q23: km
C24: Item 1 | O24: 25 | P24: =Sheet2!#REF!+O24*(Sheet2!#REF!-Sheet2!#REF!)/100 -> 
C25: Item 2
C26: Item 3 | M26: At the instant the plane is | O26: =x0 -> 12.5 | P26: km horizontally from the radar tower
C27: Item 4 | N27: and is traveling at | O27: =Area -> 750 | P27: kph
K29: The diagonal distance L between them is | P29: =SQRT(x0^2+hh^2) -> 12.7 | Q29: km
A30: To access/download all the DIGMath Apps for Calculus
A31: Click this link: | C31: DIGMath for Calculus | J31: The distance between them is decreasing at a rate of | Q31: =L0 -> -12.3 | R31: kph
A33: Created by: Sheldon P. Gordon
A34: Farmingdale State College
A35: Development of this module was supported by the
A36: NSF's Division of Undergraduate Education
A37: under grants DUE-0310123 and DUE-0442160.

Sheet Sheet2
B1: t | C1: x | D1: Distance L | E1: dL/dt | H1: Plane | I1: =xx -> 32 | J1: =H -> 2100 | L1: Later Plane | M1: =x0 -> 12.5 | N1: =J1 -> 2100 | P1: Horizontal plane
H2: intersection | I2: 0 | J2: 0 | M2: 0 | N2: 0 | P2: rate = | Q2: =Area -> 750 | R2: =Q2/120 -> 6.25
A3: 0 | B3: =0 -> 0 | C3: =dh -> 32 | D3: =SQRT(C3^2+hh^2) -> 32.06883222 | E3: =(D4-D3)/dt -> -12.4729454 | I3: 0 | J3: 0
A4: 1 | B4: =B3+dt -> 0.02133333333 | C4: =dh-dx -> 31.73333333 | D4: 31.80274272 | E4: -12.47248836
A5: 2 | B5: 0.04266666667 | C5: =dh-A5*dx -> 31.46666667 | D5: 31.53666297 | E5: -12.47201965 | H5: Distance | I5: =I1 -> 32 | J5: =J1 -> 2100
A6: 3 | B6: 0.064 | C6: 31.2 | D6: 31.27059321 | E6: -12.47153888 | I6: 0 | J6: 0
A7: 4 | B7: 0.08533333333 | C7: 30.93333333 | D7: 31.00453372 | E7: -12.47104562
A8: 5 | B8: 0.1066666667 | C8: 30.66666667 | D8: 30.73848475 | E8: -12.47053944 | H8: Flight path | I8: =I1 -> 32 | J8: =J1 -> 2100
A9: 6 | B9: 0.128 | C9: 30.4 | D9: 30.47244657 | E9: -12.47001989 | I9: 0 | J9: =J8 -> 2100
A10: 7 | B10: 0.1493333333 | C10: 30.13333333 | D10: 30.20641948 | E10: -12.46948649
A11: 8 | B11: 0.1706666667 | C11: 29.86666667 | D11: 29.94040377 | E11: -12.46893875
A12: 9 | B12: 0.192 | C12: 29.6 | D12: 29.67439974 | E12: -12.46837614 | H12: First Chart | L12: Plane time | M12: =xx/Area -> 0.04266666667 | N12: hrs = | O12: =M12*60 -> 2.56 | P12: min
A13: 10 | B13: 0.2133333333 | C13: 29.33333333 | D13: 29.40840772 | E13: -12.46779812 | H13: Vertical Line
A14: 11 | B14: 0.2346666667 | C14: 29.06666667 | D14: 29.14242802 | E14: -12.46720414 | I14: =H18 -> 12.5 | J14: 0
A15: 12 | B15: 0.256 | C15: 28.8 | D15: 28.876461 | E15: -12.46659359 | I15: =H18 -> 12.5 | J15: =hh -> 2.1 | L15: total time = | M15: =MIN(O12:O13) -> 2.56 | N15: mins
A16: 13 | B16: 0.2773333333 | C16: 28.53333333 | D16: 28.61050701 | E16: -12.46596585 | L16: dt = | M16: =time/120 -> 0.02133333333 | N16: mins
A17: 14 | B17: 0.2986666667 | C17: 28.26666667 | D17: 28.3445664 | E17: -12.46532027 | H17: Point | L17: dx = | M17: =dh/120 -> 0.2666666667
A18: 15 | B18: 0.32 | C18: 28 | D18: 28.07863957 | E18: -12.46465618 | H18: =x0 -> 12.5 | I18: 0 | L18: t0 = | M18: =time*(1-x0/dh) -> 1.56
A19: 16 | B19: 0.3413333333 | C19: 27.73333333 | D19: 27.8127269 | E19: -12.46397286 | L19: dL/dt = | M19: =LOOKUP(t0,B3:B123,E3:E123) -> -12.3244901
A20: 17 | B20: 0.3626666667 | C20: 27.46666667 | D20: 27.54682882 | E20: -12.46326956
A21: 18 | B21: 0.384 | C21: 27.2 | D21: 27.28094573 | E21: -12.46254549
A22: 19 | B22: 0.4053333333 | C22: 26.93333333 | D22: 27.01507809 | E22: -12.46179983
A23: 20 | B23: 0.4266666667 | C23: 26.66666667 | D23: 26.74922636 | E23: -12.46103171 | H23: Second Chart | L23: Horiz speed = | M23: =Area -> 750 | N23: kph = | O23: =M23/120 -> 6.25 | P23: km/half minute
A24: 21 | B24: 0.448 | C24: 26.4 | D24: 26.48339102 | E24: -12.46024023 | H24: Vertical Line | L24: Horiz distance | M24: =H/1000 -> 2.1 | N24: km
A25: 22 | B25: 0.4693333333 | C25: 26.13333333 | D25: 26.21757256 | E25: -12.45942443 | I25: =t0 -> 1.56 | J25: 0
A26: 23 | B26: 0.4906666667 | C26: 25.86666667 | D26: 25.95177151 | E26: -12.4585833 | I26: =I25 -> 1.56 | J26: =LOOKUP(t0,B3:B123,D3:D123) -> 12.70804644
A27: 24 | B27: 0.512 | C27: 25.6 | D27: 25.6859884 | E27: -12.45771579
A28: 25 | B28: 0.5333333333 | C28: 25.33333333 | D28: 25.42022379 | E28: -12.45682078 | H28: Third Chart
A29: 26 | B29: 0.5546666667 | C29: 25.06666667 | D29: 25.15447828 | E29: -12.45589711 | H29: Vertical Line
A30: 27 | B30: 0.576 | C30: 24.8 | D30: 24.88875248 | E30: -12.45494353 | I30: =x0 -> 12.5 | J30: 0
A31: 28 | B31: 0.5973333333 | C31: 24.53333333 | D31: 24.62304702 | E31: -12.45395874 | I31: =I30 -> 12.5 | J31: =SQRT(x0^2+hh^2) -> 12.67517258
A32: 29 | B32: 0.6186666667 | C32: 24.26666667 | D32: 24.35736256 | E32: -12.45294137
A33: 30 | B33: 0.64 | C33: 24 | D33: 24.09169982 | E33: -12.45188997 | H33: Fourth Chart
A34: 31 | B34: 0.6613333333 | C34: 23.73333333 | D34: 23.8260595 | E34: -12.45080301 | H34: Vertical Line
A35: 32 | B35: 0.6826666667 | C35: 23.46666667 | D35: =SQRT(C35^2+hh^2) -> 23.56044237 | E35: -12.44967887 | I35: =t0 -> 1.56 | J35: 0
A36: 33 | B36: =B35+dt -> 0.704 | C36: 23.2 | D36: 23.29484922 | E36: -12.44851583 | I36: =I35 -> 1.56 | J36: =L0 -> -12.3244901
A37: 34 | B37: 0.7253333333 | C37: =dh-A37*dx -> 22.93333333 | D37: 23.02928088 | E37: -12.44731208
A38: 35 | B38: 0.7466666667 | C38: 22.66666667 | D38: 22.76373822 | E38: -12.44606572 | H38: Point
A39: 36 | B39: 0.768 | C39: 22.4 | D39: 22.49822215 | E39: -12.4447747 | I39: =t0 -> 1.56 | J39: =L0 -> -12.3244901
A40: 37 | B40: 0.7893333333 | C40: 22.13333333 | D40: 22.23273363 | E40: -12.44343687
A41: 38 | B41: 0.8106666667 | C41: 21.86666667 | D41: 21.96727364 | E41: -12.44204995
A42: 39 | B42: 0.832 | C42: 21.6 | D42: 21.70184324 | E42: -12.44061151
A43: 40 | B43: 0.8533333333 | C43: 21.33333333 | D43: 21.43644353 | E43: -12.43911897
A44: 41 | B44: 0.8746666667 | C44: 21.06666667 | D44: 21.17107566 | E44: -12.43756959
A45: 42 | B45: 0.896 | C45: 20.8 | D45: 20.90574084 | E45: -12.43596046
A46: 43 | B46: 0.9173333333 | C46: 20.53333333 | D46: 20.64044035 | E46: -12.43428848
A47: 44 | B47: 0.9386666667 | C47: 20.26666667 | D47: 20.37517553 | E47: -12.43255033
A48: 45 | B48: 0.96 | C48: 20 | D48: 20.10994779 | E48: -12.43074249
A49: 46 | B49: 0.9813333333 | C49: 19.73333333 | D49: 19.84475861 | E49: -12.4288612
A50: 47 | B50: 1.002666667 | C50: 19.46666667 | D50: 19.57960958 | E50: -12.42690242
A51: 48 | B51: 1.024 | C51: 19.2 | D51: 19.31450232 | E51: -12.42486187
A52: 49 | B52: 1.045333333 | C52: 18.93333333 | D52: 19.0494386 | E52: -12.42273493
A53: 50 | B53: 1.066666667 | C53: 18.66666667 | D53: 18.78442026 | E53: -12.42051668
A54: 51 | B54: 1.088 | C54: 18.4 | D54: 18.51944924 | E54: -12.41820184
A55: 52 | B55: 1.109333333 | C55: 18.13333333 | D55: 18.2545276 | E55: -12.41578473
A56: 53 | B56: 1.130666667 | C56: 17.86666667 | D56: 17.98965752 | E56: -12.41325925
A57: 54 | B57: 1.152 | C57: 17.6 | D57: 17.72484133 | E57: -12.41061887
A58: 55 | B58: 1.173333333 | C58: 17.33333333 | D58: 17.46008146 | E58: -12.40785653
A59: 56 | B59: 1.194666667 | C59: 17.06666667 | D59: 17.19538052 | E59: -12.40496462
A60: 57 | B60: 1.216 | C60: 16.8 | D60: 16.93074127 | E60: -12.40193495
A61: 58 | B61: 1.237333333 | C61: 16.53333333 | D61: 16.66616666 | E61: -12.39875867
A62: 59 | B62: 1.258666667 | C62: 16.26666667 | D62: 16.40165981 | E62: -12.3954262
A63: 60 | B63: 1.28 | C63: 16 | D63: 16.13722405 | E63: -12.39192717
A64: 61 | B64: 1.301333333 | C64: 15.73333333 | D64: 15.87286294 | E64: -12.38825036
A65: 62 | B65: 1.322666667 | C65: 15.46666667 | D65: 15.60858026 | E65: -12.38438357
A66: 63 | B66: 1.344 | C66: 15.2 | D66: 15.34438008 | E66: -12.38031354
A67: 64 | B67: 1.365333333 | C67: 14.93333333 | D67: =SQRT(C67^2+hh^2) -> 15.08026672 | E67: =(D68-D67)/dt -> -12.37602585
A68: 65 | B68: =B67+dt -> 1.386666667 | C68: 14.66666667 | D68: 14.81624484 | E68: -12.3715048
A69: 66 | B69: 1.408 | C69: =dh-A69*dx -> 14.4 | D69: 14.5523194 | E69: -12.36673321
A70: 67 | B70: 1.429333333 | C70: 14.13333333 | D70: 14.28849576 | E70: -12.36169234
A71: 68 | B71: 1.450666667 | C71: 13.86666667 | D71: 14.02477966 | E71: -12.35636167
A72: 69 | B72: 1.472 | C72: 13.6 | D72: 13.76117728 | E72: -12.35071869
A73: 70 | B73: 1.493333333 | C73: 13.33333333 | D73: 13.49769528 | E73: -12.34473867
A74: 71 | B74: 1.514666667 | C74: 13.06666667 | D74: 13.23434085 | E74: -12.3383944
A75: 72 | B75: 1.536 | C75: 12.8 | D75: 12.97112177 | E75: -12.33165592
A76: 73 | B76: 1.557333333 | C76: 12.53333333 | D76: 12.70804644 | E76: -12.3244901
A77: 74 | B77: 1.578666667 | C77: 12.26666667 | D77: 12.44512399 | E77: -12.31686032
A78: 75 | B78: 1.6 | C78: 12 | D78: 12.1823643 | E78: -12.30872597
A79: 76 | B79: 1.621333333 | C79: 11.73333333 | D79: 11.91977815 | E79: -12.30004193
A80: 77 | B80: 1.642666667 | C80: 11.46666667 | D80: 11.65737725 | E80: -12.29075798
A81: 78 | B81: 1.664 | C81: 11.2 | D81: 11.39517442 | E81: -12.28081807
A82: 79 | B82: 1.685333333 | C82: 10.93333333 | D82: 11.13318363 | E82: -12.27015954
A83: 80 | B83: 1.706666667 | C83: 10.66666667 | D83: 10.87142023 | E83: -12.25871212
A84: 81 | B84: 1.728 | C84: 10.4 | D84: 10.60990104 | E84: -12.24639684
A85: 82 | B85: 1.749333333 | C85: 10.13333333 | D85: 10.34864457 | E85: -12.23312471
A86: 83 | B86: 1.770666667 | C86: 9.866666667 | D86: 10.08767124 | E86: -12.21879519
A87: 84 | B87: 1.792 | C87: 9.6 | D87: 9.827003612 | E87: -12.20329434
A88: 85 | B88: 1.813333333 | C88: 9.333333333 | D88: 9.566666667 | E88: -12.18649266
A89: 86 | B89: 1.834666667 | C89: 9.066666667 | D89: 9.306688157 | E89: -12.16824253
A90: 87 | B90: 1.856 | C90: 8.8 | D90: 9.047098983 | E90: -12.14837512
A91: 88 | B91: 1.877333333 | C91: 8.533333333 | D91: 8.787933647 | E91: -12.12669666
A92: 89 | B92: 1.898666667 | C92: 8.266666667 | D92: 8.529230785 | E92: -12.102984
A93: 90 | B93: 1.92 | C93: 8 | D93: 8.271033793 | E93: -12.07697922
A94: 91 | B94: 1.941333333 | C94: 7.733333333 | D94: 8.013391569 | E94: -12.04838303
A95: 92 | B95: 1.962666667 | C95: 7.466666667 | D95: 7.756359398 | E95: -12.01684678
A96: 93 | B96: 1.984 | C96: 7.2 | D96: 7.5 | E96: -11.98196256
A97: 94 | B97: 2.005333333 | C97: 6.933333333 | D97: 7.244384799 | E97: -11.94325109
A98: 95 | B98: 2.026666667 | C98: 6.666666667 | D98: 6.989595442 | E98: -11.90014662
A99: 96 | B99: 2.048 | C99: 6.4 | D99: =SQRT(C99^2+hh^2) -> 6.735725648 | E99: -11.85197819
A100: 97 | B100: =B99+dt -> 2.069333333 | C100: 6.133333333 | D100: 6.482883446 | E100: -11.79794613
A101: 98 | B101: 2.090666667 | C101: =dh-A101*dx -> 5.866666667 | D101: 6.231193929 | E101: -11.73709252
A102: 99 | B102: 2.112 | C102: 5.6 | D102: 5.980802622 | E102: -11.6682638
A103: 100 | B103: 2.133333333 | C103: 5.333333333 | D103: 5.731879661 | E103: -11.59006341
A104: 101 | B104: 2.154666667 | C104: 5.066666667 | D104: 5.484624975 | E104: -11.50079135
A105: 102 | B105: 2.176 | C105: 4.8 | D105: 5.239274759 | E105: -11.39836694
A106: 103 | B106: 2.197333333 | C106: 4.533333333 | D106: 4.996109598 | E106: -11.28022991
A107: 104 | B107: 2.218666667 | C107: 4.266666667 | D107: 4.755464693 | E107: -11.14321376
A108: 105 | B108: 2.24 | C108: 4 | D108: 4.517742799 | E108: -10.98338394
A109: 106 | B109: 2.261333333 | C109: 3.733333333 | D109: 4.283430608 | E109: -10.79583265
A110: 107 | B110: 2.282666667 | C110: 3.466666667 | D110: 4.053119512 | E110: -10.57442204
A111: 108 | B111: 2.304 | C111: 3.2 | D111: 3.827531842 | E111: -10.31147055
A112: 109 | B112: 2.325333333 | C112: 2.933333333 | D112: 3.607553803 | E112: -9.997386353
A113: 110 | B113: 2.346666667 | C113: 2.666666667 | D113: 3.394276228 | E113: -9.62027269
A114: 111 | B114: 2.368 | C114: 2.4 | D114: 3.189043744 | E114: -9.165573847
A115: 112 | B115: 2.389333333 | C115: 2.133333333 | D115: 2.993511502 | E115: -8.615910939
A116: 113 | B116: 2.410666667 | C116: 1.866666667 | D116: 2.809705402 | E116: -7.95138962
A117: 114 | B117: 2.432 | C117: 1.6 | D117: 2.640075756 | E117: -7.150843543
A118: 115 | B118: 2.453333333 | C118: 1.333333333 | D118: 2.487524428 | E118: -6.194639874
A119: 116 | B119: 2.474666667 | C119: 1.066666667 | D119: 2.35537211 | E119: -5.069606477
A120: 117 | B120: 2.496 | C120: 0.8 | D120: 2.247220505 | E120: -3.775961192
A121: 118 | B121: 2.517333333 | C121: 0.5333333333 | D121: 2.166666667 | E121: -2.334523067
A122: 119 | B122: 2.538666667 | C122: 0.2666666667 | D122: 2.116863508 | E122: -0.7904769332
A123: 120 | B123: 2.56 | C123: 0 | D123: 2.1

Sheet Sheet1
